Cogmind - Beta 10.1 @@@ ROGUE MODE // 2020.09.26 @ 23:53:41 Player: Andru7428 Result: Destroyed by Y-45 Defender with Heavy Assault Rifle Performance ------------- Evolutions (2) 1000 Regions Visited (8) 1600 Robots Destroyed (97) 485 Value Destroyed (3392) 3392 Prototype IDs (5) 100 Alien Tech Used (0) 0 Bonus (886) 886 TOTAL SCORE: 7463 Bonus ------- High Alert Combat Kills 37 Follower Combat Kills 494 Entered Garrisons 400 Used RIF Installer 500 Friendly Fire -545 Cogmind --------- Core Integrity 0/550 Matter 300/300 Energy 185/275 System Corruption 5% Temperature Cool (184) Movement Rolling (110) Ox2 Location -8/Garrison Parts ------- > --- POWER (1) -------- Deuterium Engine > --- PROPULSION (2) --- Armored Wheel Armored Wheel > --- UTILITY (6) ------ Improved Heat Sink Large Storage Unit Large Storage Unit Improved Signal Interpreter Relay Coupler [Grunt] (21) Relay Coupler [Sentry] (4) > --- WEAPON (2) ------- EM Pulse Cannon Improved Datajack > --- INVENTORY (16) --- Deuterium Engine Armored Wheel Advanced Sensor Array Light Armor Plating Relay Coupler [NC] (26) Relay Coupler [Swarmer] (38) Relay Coupler [Grunt] (21) Relay Coupler [Grunt] (24) Relay Coupler [Brawler] (29) Relay Coupler [Sentry] (24) Relay Coupler [Hunter] (17) Lightning Gun EM Pulse Cannon Improved Grenade Launcher Improved Datajack Power Maul Peak State ------------ > --- POWER ------------ Deuterium Engine > --- PROPULSION ------- Compact Wheel Armored Wheel > --- UTILITY ---------- Advanced Heat Sink Humpback Advanced Sensor Array Improved Signal Interpreter Relay Coupler [Grunt] > --- WEAPON ----------- Precision Beam Rifle Improved Datajack > --- INVENTORY -------- Deuterium Engine Deuterium Engine Large Storage Unit Large Storage Unit Large Storage Unit Advanced Sensor Array Relay Coupler [NC] Relay Coupler [Swarmer] Relay Coupler [Grunt] Relay Coupler [Brawler] Relay Coupler [Sentry] Relay Coupler [Hunter] Lightning Gun Advanced Beam Rifle EM Pulse Cannon EM Pulse Cannon Improved Grenade Launcher Improved Grenade Launcher Improved Datajack Improved Datajack Power Maul [Rating: 34] Favorites ----------- Power Improved Ion Engine Engine Improved Ion Engine Power Core Light Nuclear Core Propulsion Wheel Treads Light Treads Leg Aluminum Leg Wheel Wheel Utility Large Storage Unit Device Advanced Sensor Array Storage Large Storage Unit Processor Improved Signal Interpreter Hackware Relay Coupler [Grunt] Protection Heavy Armor Plating Weapon Advanced Beam Rifle Energy Gun Advanced Beam Rifle Energy Cannon EM Pulse Cannon Ballistic Gun Assault Rifle Launcher Grenade Launcher Impact Weapon Power Maul Special Melee Weapon Improved Datajack Build | -11 -10 -10 -10 -9 -8 -8 -8 -8 ------- Run | Scr Mat Min Exi Min Mat Gar Mat Gar Slots Evolved 4 | . . . . . 4 . . . Power . | . . . . . . . . . Propulsion . | . . . . . . . . . Utility 4 | . . . . . 4 . . . Weapon . | . . . . . . . . . Parts Attached 95 | 7 7 4 . 5 30 14 5 23 Power 9 | 2 . . . 2 2 1 . 2 Engine 6 | 2 . . . . 2 1 . 1 Core 3 | . . . . 2 . . . 1 Reactor . | . . . . . . . . . Propulsion 20 | 2 2 . . 2 5 2 1 6 Treads 4 | . . . . . . . . 4 Leg 2 | 2 . . . . . . . . Wheel 14 | . 2 . . 2 5 2 1 2 Hover . | . . . . . . . . . Flight . | . . . . . . . . . Utility 25 | 1 3 . . . 10 3 2 6 Device 7 | . . . . . 3 2 . 2 Storage 6 | 1 2 . . . . 1 . 2 Processor 2 | . . . . . 2 . . . Hackware 5 | . . . . . 1 . 2 2 Protection 5 | . 1 . . . 4 . . . Artifact . | . . . . . . . . . Weapon 41 | 2 2 4 . 1 13 8 2 9 Energy Gun 20 | 1 1 2 . 1 9 4 1 1 Energy Cannon 4 | . . . . . . . . 4 Ballistic Gun 4 | 1 . . . . 2 . . 1 Ballistic Cannon . | . . . . . . . . . Launcher 7 | . 1 2 . . 2 1 . 1 Special Weapon . | . . . . . . . . . Impact Weapon 3 | . . . . . . 3 . . Slashing Weapon . | . . . . . . . . . Piercing Weapon . | . . . . . . . . . Special Melee Weapon 3 | . . . . . . . 1 2 Unidentified Prototypes 3 | . . . . . 2 . 1 . Parts Lost 26 | . . . . 1 13 3 2 7 Power 3 | . . . . . 1 1 . 1 Propulsion 9 | . . . . . 3 2 1 3 Utility 5 | . . . . . 4 . . 1 Weapon 9 | . . . . 1 5 . 1 2 Highest Loss Streak 4 | . . . . 1 3 2 2 4 Average Slot Usage (%) 92 | . 96 100 100 100 90 92 88 92 Engine 8 | . 14 14 14 . 7 8 9 7 Core 1 | . . . . 13 1 . . . Treads 1 | . . . . . . . . 11 Leg 1 | . 10 . . . . . . . Wheel 17 | . 17 28 28 28 17 17 17 6 Device 9 | . . . . . 14 17 11 5 Storage 18 | . 23 28 28 28 18 17 9 16 Processor 5 | . . . . . 4 9 9 9 Hackware 4 | . . . . . . . 14 18 Protection 3 | . 1 . . . 8 2 . . Energy Gun 11 | . 14 13 14 14 13 13 9 . Ballistic Gun 5 | . 14 14 14 14 4 . . 2 Special Melee Weapon 2 | . . . . . . . 8 8 Naked Turns . | . . . . . . . . . Heaviest Build 111 | 13 41 41 41 41 77 111 95 93 Greatest Support 40 | 20 26 26 26 26 26 22 28 40 Greatest Overweight (x) 7 | 2 1 1 1 2 4 5 7 7 Average Overweight (x) 1 | . . 1 1 1 2 3 3 1 Largest Inventory Capacity 36 | 6 16 16 16 16 16 36 24 24 Average Capacity 17 | 5 12 16 16 16 16 25 24 15 Most Carried 21 | 6 13 14 16 16 16 19 21 21 Average Carried 14 | 3 9 13 14 15 15 14 20 13 Final Capacity 24 | 6 16 16 16 16 16 24 24 16 Final Carried 21 | 6 13 14 15 15 15 19 21 16 Class Distribution -------------------- 41% | Mutant 27% | Bothacker-Mutant 19% | Scavenger-Mutant 8% | Hauler-Mutant Dominant Class ---------------- Mutant | -10/Materials Mutant | -10/Mines Mutant | -10/Exiles Mutant | -9/Mines Scavenger-Mutant | -8/Materials Hauler-Mutant | -8/Garrison Bothacker-Mutant | -8/Materials Bothacker-Mutant | -8/Garrison Resources | -11 -10 -10 -10 -9 -8 -8 -8 -8 ----------- Run | Scr Mat Min Exi Min Mat Gar Mat Gar Matter Collected 1719 | 261 138 66 . 74 616 175 45 344 Remotely . | . . . . . . . . . Salvage Created 3726 | . 269 28 . 166 1974 259 179 851 Parts 169 | . 15 7 . 16 80 20 4 27 Haulers Intercepted 4 | . . . . . 4 . . . Recyclers Shooed 2 | . 1 . . . 1 . . . Parts Field Recycled . | . . . . . . . . . Retrieved Matter . | . . . . . . . . . Parts Self-Destructed . | . . . . . . . . . Prevented . | . . . . . . . . . Kills | -11 -10 -10 -10 -9 -8 -8 -8 -8 ------- Run | Scr Mat Min Exi Min Mat Gar Mat Gar Combat Hostiles Destroyed 79 | . 5 5 . 7 38 9 2 13 Guns 46 | . . . . 5 30 6 2 3 Cannons 4 | . . . . . . . . 4 AOE 26 | . 5 5 . 2 7 3 . 4 Classes Destroyed 9 | . 4 . . 1 4 . . . Worker 6 | . 3 . . . 3 . . . Hauler 4 | . . . . . 4 . . . Recycler 2 | . 1 . . . . . 1 . Watcher 3 | . . . . . 3 . . . Swarmer 28 | . 3 5 . 6 7 4 . 3 Grunt 44 | . 2 . . 1 24 5 2 10 Duelist 4 | . . . . 1 2 . . 1 Sentry 5 | . . . . . 5 . . . Hunter 1 | . . . . . 1 . . . Best Kill Streak 6 | . 6 3 . 4 6 4 2 4 Combat Bots Only 6 | . 3 3 . 4 6 4 1 4 Max Kills in Single Turn 3 | . 3 3 . 3 2 2 1 2 Gunslinging 1 | . . . . 1 . . . . Exploded 3 | . 2 3 . 2 2 2 . 2 Melee . | . . . . . . . . . Uniques/NPCs Destroyed . | . . . . . . . . . Combat | -11 -10 -10 -10 -9 -8 -8 -8 -8 -------- Run | Scr Mat Min Exi Min Mat Gar Mat Gar Damage Taken 4477 | . 159 72 . 111 2475 286 221 1153 Core 619 | . 37 21 . 7 257 16 14 267 Absorbed by Shields 61 | . . . . . . 30 . 31 Core Remaining (%) 87 | 100 . . . 74 . . . . Volleys Fired 281 | . 15 2 . 10 144 23 23 64 Largest 2 | . 2 2 . 2 2 2 1 2 Hottest 126 | . 60 50 . 60 124 122 61 126 Shots Fired 454 | . 28 4 . 20 269 41 23 69 Gun 411 | . 26 2 . 20 263 37 23 40 Cannon 27 | . . . . . . . . 27 Launcher 16 | . 2 2 . . 6 4 . 2 Special . | . . . . . . . . . Kinetic 128 | . 13 2 . 10 76 . . 27 Thermal 134 | . . . . . 72 37 23 2 Explosive 16 | . 2 2 . . 6 4 . 2 Electromagnetic 176 | . 13 . . 10 115 . . 38 Robot Hit Streak 24 | . 4 . . 8 17 5 8 24 Robot Miss Streak 6 | . 6 2 . 3 6 3 1 3 Penetration Max . | . . . . . . . . . Secondary Targets 2 | . . . . 1 1 . . . Max Gunslinging Chain 1 | . . . . 1 1 . . . Shots Hit Robots 333 | . 14 . . 13 195 21 21 69 Core Hits 185 | . 13 5 . 10 112 14 8 23 Critical Hits 3 | . . . . . 3 . . . Critical Kills . | . . . . . . . . . Critical Parts Destroyed 3 | . . . . . 3 . . . Melee Attacks 68 | . . . . . . 45 5 18 Impact 45 | . . . . . . 45 . . Slashing . | . . . . . . . . . Piercing . | . . . . . . . . . Sneak Attacks 8 | . . . . . . . . 8 Combat Hostiles . | . . . . . . . . . Follow-up Attacks . | . . . . . . . . . Damage Inflicted 7906 | . 438 222 . 416 4396 603 363 1468 Guns 4803 | . 157 10 . 140 3168 400 363 565 Cannons 616 | . . . . . . . . 616 Explosions 2429 | . 281 212 . 255 1212 182 . 287 Melee 21 | . . . . . . 21 . . Ramming 37 | . . . . 21 16 . . . Kinetic 1442 | . 42 10 . 70 1000 . . 320 Thermal 2370 | . 83 . . 255 1072 400 363 197 Explosive 1629 | . 198 212 . . 913 182 . 124 Electromagnetic 2407 | . 115 . . 70 1395 . . 827 Impact 21 | . . . . . . 21 . . Slashing . | . . . . . . . . . Piercing . | . . . . . . . . . Highest Corruption 5 | . . . . . 1 1 5 5 Average Corruption 2 | . . . . . 1 1 2 5 Corruption Purged . | . . . . . . . . . Effects 43 | . . . . . 6 3 8 26 Message Errors 18 | . . . . . 4 2 3 9 Matter Fused 5 | . . . . . . . . 5 Heat Flow Errors 3 | . . . . . . . 1 2 Energy Discharges 7 | . . . . . 1 . 4 2 Data Loss (minor) 5 | . . . . . . . . 5 Misfires 1 | . . . . . . . . 1 Targeting Errors 4 | . . . . . 1 1 . 2 Overload Shots . | . . . . . . . . . Overflow Damage 70 | . . . . 1 69 . . . Projectiles . | . . . . . . . . . Explosions 69 | . . . . . 69 . . . Melee 1 | . . . . 1 . . . . Knockbacks 1 | . . . . 1 . . . . Impact 1 | . . . . 1 . . . . Kinetic . | . . . . . . . . . Secondary . | . . . . . . . . . Self-Inflicted Damage 234 | . 51 . . 50 39 51 . 43 Shots 9 | . 2 . . 1 1 3 . 2 Rammed 3 | . . . . 1 2 . . . Targets Rammed 3 | . . . . 1 2 . . . Kicked . | . . . . . . . . . Crushed . | . . . . . . . . . Highest Temperature 336 | . 36 . . 24 336 6 267 183 Average Temperature 88 | . 18 . . 11 112 3 121 40 Received Heat Transfer 1686 | . 24 . . 6 963 99 126 468 Siege Activations . | . . . . . . . . . Robots Corrupted 5 | . . . . . 1 . . 4 Combat Hostiles 3 | . . . . . 1 . . 2 Parts Fried 9 | . . . . . 5 . . 4 Impact Corruptions 1 | . . . . 1 . . . . Robots Melted . | . . . . . . . . . Combat Hostiles . | . . . . . . . . . Parts Melted 9 | . . . . 1 6 1 . 1 Heat Transferred 4071 | . 150 . . 300 1967 740 740 174 Parts Sabotaged . | . . . . . . . . . Parts Stolen . | . . . . . . . . . Parts Stripped . | . . . . . . . . . Power Chain Reactions 8 | . 1 . . . 5 . . 2 Missiles Intercepted . | . . . . . . . . . Alert | -11 -10 -10 -10 -9 -8 -8 -8 -8 ------- Run | Scr Mat Min Exi Min Mat Gar Mat Gar Peak Influence 560 | . 227 182 . 297 347 560 369 452 Initial 273 | . . . . . 37 225 273 31 Average 160 | . 60 63 . 203 121 338 209 151 Maximum Alert Level 2 | . 1 . . 1 1 2 1 2 Low Security (%) 66 | 100 88 100 . 42 86 . 60 63 Level 1 29 | . 11 . . 57 13 71 39 35 Level 2 3 | . . . . . . 28 . . Level 3 . | . . . . . . . . . Level 4 . | . . . . . . . . . Level 5 . | . . . . . . . . . High Security . | . . . . . . . . . Max Security . | . . . . . . . . . Squads Dispatched 10 | . . . . . 8 . 2 . Investigation 4 | . . . . . 3 . 1 . Extermination . | . . . . . . . . . Reinforcement 1 | . . . . . 1 . . . Assault . | . . . . . . . . . Garrison 5 | . . . . . 4 . 1 . Intercept . | . . . . . . . . . Construction Impeded 1 | . . . . . 1 . . . Haulers Reinforced . | . . . . . . . . . Stealth | -11 -10 -10 -10 -9 -8 -8 -8 -8 --------- Run | Scr Mat Min Exi Min Mat Gar Mat Gar Distress Signals 4 | . 1 . . . 3 . . . Communications Jammed . | . . . . . . . . . Distress Signals . | . . . . . . . . . Times Spotted 148 | . 14 6 . 11 71 11 8 27 Peak Tracking Total 8 | . 5 3 . 3 8 4 2 6 Tactical Retreats 22 | . 1 . . . 18 2 1 . Traps | -11 -10 -10 -10 -9 -8 -8 -8 -8 ------- Run | Scr Mat Min Exi Min Mat Gar Mat Gar Traps Triggered 16 | . . . . . 4 3 2 7 Indirectly . | . . . . . . . . . Trap Hack Attempts . | . . . . . . . . . Triggered . | . . . . . . . . . Disarmed . | . . . . . . . . . Reprogrammed . | . . . . . . . . . Reused . | . . . . . . . . . Traps Extracted . | . . . . . . . . . Installed . | . . . . . . . . . Triggered 1 | . . . . . 1 . . . Machines | -11 -10 -10 -10 -9 -8 -8 -8 -8 ---------- Run | Scr Mat Min Exi Min Mat Gar Mat Gar Machines Disabled 5 | . 1 . . 1 . 2 . 1 Max in Single Turn 1 | . 1 . . 1 . 1 . 1 Garrison Relay 3 | . . . . . . 2 . 1 Machines Sabotaged . | . . . . . . . . . Garrisons Compromised . | . . . . . . . . . Overloaded Fab Kills . | . . . . . . . . . Fab Network Shutdowns . | . . . . . . . . . Hacking | -11 -10 -10 -10 -9 -8 -8 -8 -8 --------- Run | Scr Mat Min Exi Min Mat Gar Mat Gar Machines Accessed 20 | . 5 . 1 . 11 . 3 . Terminals 15 | . 5 . . . 9 . 1 . Fabricators . | . . . . . . . . . Repair Stations . | . . . . . . . . . Recycling Units 1 | . . . . . 1 . . . Scanalyzers 1 | . . . . . . . 1 . Garrison Access 2 | . . . . . 1 . 1 . Total Hacks 58 | . 14 . 2 . 35 . 7 . Successful 26 | . 7 . 2 . 13 . 4 . Failed 32 | . 7 . . . 22 . 3 . Catastrophic 3 | . . . . . 2 . 1 . Database Lockouts . | . . . . . . . . . Manual 27 | . 6 . . . 18 . 3 . Terminals 48 | . 14 . . . 31 . 3 . Fabricators . | . . . . . . . . . Repair Stations . | . . . . . . . . . Recycling Units 2 | . . . . . 2 . . . Scanalyzers 3 | . . . . . . . 3 . Garrison Access 3 | . . . . . 2 . 1 . Terminal Hacks 17 | . 7 . 2 . 8 . . . Record 2 | . . . 2 . . . . . Robot Analysis 2 | . 2 . . . . . . . Prototype ID Bank 1 | . 1 . . . . . . . Alert Level 1 | . 1 . . . . . . . Unreport Threat 2 | . 1 . . . 1 . . . Locate Traps 2 | . 1 . . . 1 . . . Garrison Status 1 | . . . . . 1 . . . Hauler Manifests 1 | . . . . . 1 . . . Registered Components 1 | . 1 . . . . . . . Zone Layout 4 | . . . . . 4 . . . Fabricator Hacks . | . . . . . . . . . Repair Station Hacks . | . . . . . . . . . Recycling Unit Hacks 1 | . . . . . 1 . . . Retrieve Components 1 | . . . . . 1 . . . Scanalyzer 3 | . . . . . . . 3 . Insert Component 2 | . . . . . . . 2 . Analyze 1 | . . . . . . . 1 . Garrison Access Hacks 3 | . . . . . 2 . 1 . Unlock Access 2 | . . . . . 1 . 1 . Coupler Status 1 | . . . . . 1 . . . Unauthorized Hacks 2 | . . . . . 2 . . . Terminals 2 | . . . . . 2 . . . Track 2 | . . . . . 2 . . . Fabricators . | . . . . . . . . . Repair Stations . | . . . . . . . . . Recycling Units . | . . . . . . . . . Scanalyzers . | . . . . . . . . . Garrison Access . | . . . . . . . . . Data Cores Recovered . | . . . . . . . . . Used . | . . . . . . . . . Hacking Detections 16 | . 5 . . . 10 . 1 . Full Trace Events 2 | . . . . . 1 . 1 . Feedback Events 1 | . . . . . . . 1 . Corruption 1 | . . . . . . . 1 . Feedback Blocked . | . . . . . . . . . Robot Schematics Acquired . | . . . . . . . . . Robots Built . | . . . . . . . . . Matter . | . . . . . . . . . Time . | . . . . . . . . . Total Robot Build Rating . | . . . . . . . . . Part Schematics Acquired 1 | . . . . . . . 1 . Parts Built . | . . . . . . . . . Matter . | . . . . . . . . . Time . | . . . . . . . . . Total Part Build Rating . | . . . . . . . . . Parts Repaired . | . . . . . . . . . Time . | . . . . . . . . . Parts Recycled . | . . . . . . . . . Recycled Matter . | . . . . . . . . . Retrieved Matter . | . . . . . . . . . Retrieved Components 10 | . . . . . 10 . . . Parts Scanalyzed 1 | . . . . . . . 1 . Part Schematics Acquired 1 | . . . . . . . 1 . Parts Damaged . | . . . . . . . . . Bothacking | -11 -10 -10 -10 -9 -8 -8 -8 -8 ------------ Run | Scr Mat Min Exi Min Mat Gar Mat Gar Used RIF Installer 1 | . . . . . . 1 . . Robots Hacked 8 | . . . . . . . 2 6 Non-combat . | . . . . . . . . . Combat 8 | . . . . . . . 2 6 Robot Hacks Applied 8 | . . . . . . . 2 6 overwrite_iff 2 | . . . . . . . 2 . streamctrl_high 6 | . . . . . . . . 6 Relay Couplers Released 11 | . . . . . . 7 . 4 Machine Destruction 11 | . . . . . . 7 . 4 Attached 4 | . . . . . . . 2 2 Robots Rewired 4 | . . . . . 1 . . 3 Allies Hacked . | . . . . . . . . . Hacks Repelled . | . . . . . . . . . Allies | -11 -10 -10 -10 -9 -8 -8 -8 -8 -------- Run | Scr Mat Min Exi Min Mat Gar Mat Gar Total Allies 17 | . . 5 . . 1 . 2 9 Largest Group 5 | . . 5 5 2 2 . 1 3 Highest-Rated Group 114 | . . 87 87 24 24 . 16 114 Highest-Rated Ally 38 | . . 31 31 16 16 . 16 38 Total Orders . | . . . . . . . . . Ally Attacks 99 | . . 1 . 26 26 . 8 38 Total Damage 1496 | . . 21 . 226 303 . 74 872 Kills 17 | . . 1 . 5 2 . 2 7 Allies Corrupted . | . . . . . . . . . Allies Melted . | . . . . . . . . . Intel | -11 -10 -10 -10 -9 -8 -8 -8 -8 ------- Run | Scr Mat Min Exi Min Mat Gar Mat Gar Robot Analysis Total 2 | . 2 . . . . . . . Derelict Logs Recovered 2 | . . 1 . 1 . . . . Drone Launches . | . . . . . . . . . Drone Recoveries . | . . . . . . . . . Exploration | -11 -10 -10 -10 -9 -8 -8 -8 -8 ------------- Run | Scr Mat Min Exi Min Mat Gar Mat Gar Turns Passed 7405 | 75 689 466 200 514 2523 918 1010 1010 Spaces Moved 4557 | 47 383 436 194 464 1412 583 584 454 Core 25 | 16 . . . . . . . 9 Treads 265 | . . . . . . . . 265 Legs 215 | 31 184 . . . . . . . Wheels 4052 | . 199 436 194 464 1412 583 584 180 Hover . | . . . . . . . . . Flight . | . . . . . . . . . Fastest Speed 50 | 50 100 100 100 100 100 100 125 50 Average Speed 112 | 113 111 100 100 100 104 117 125 148 Slowest Speed 180 | 150 150 100 100 100 120 135 160 180 Overloaded Moves . | . . . . . . . . . Propulsion Burnouts . | . . . . . . . . . Robots Hopped . | . . . . . . . . . Cave-ins Triggered . | . . . . . . . . . Exploration Rate (%) 51 | 4 51 87 56 83 84 37 18 40 Regions Visited 8 Branch Regions 3 Pre-discovered Areas 1 | . . . 1 . . . . . Known Exits Taken 3 | . . . . 1 1 . 1 . Unknown Exits Taken 4 | 1 1 1 1 . . . . . Scrap Searched 3 | . . 1 . 2 . . . . Spaces Dug 30 | . . . . . . 30 . . Terrain Destroyed 137 | . 12 11 . 16 40 51 . 7 Melee 30 | . . . . . . 30 . . Projectile . | . . . . . . . . . AOE 107 | . 12 11 . 16 40 21 . 7 Terrain Rammed . | . . . . . . . . . Walls Destroyed . | . . . . . . . . . Machines Disabled . | . . . . . . . . . Actions | -11 -10 -10 -10 -9 -8 -8 -8 -8 --------- Run | Scr Mat Min Exi Min Mat Gar Mat Gar Total 6273 | 65 616 460 200 497 2184 706 834 711 Wait 1096 | 6 200 18 5 6 545 7 209 100 Move 4550 | 46 382 435 193 463 1411 582 584 454 Hop . | . . . . . . . . . Pick Up 82 | 6 8 1 1 4 25 8 6 23 Fast Attach 29 | 6 3 . . 1 8 . 1 10 Attach 26 | . . . . 1 14 5 2 4 Detach 8 | . 1 . . 1 1 4 . 1 Swap 40 | 1 4 4 . 3 8 9 2 9 Drop 42 | . 3 . 1 7 16 1 2 12 Fire 281 | . 15 2 . 10 144 23 23 64 Melee 68 | . . . . . . 45 5 18 Ram 3 | . . . . 1 2 . . . Kick . | . . . . . . . . . Crush . | . . . . . . . . . Escape Stasis 38 | . . . . . . 22 . 16 Rewire 10 | . . . . . 10 . . . Trap . | . . . . . . . . . Miscellaneous . | . . . . . . . . . Route ------- -11/Scrapyard -10/Materials (discovered 2 exits: [*Mat] / [*Min]) -10/Mines (discovered 3 exits: [*Mat x2] / *Exi) -10/Exiles -9/Mines (discovered 2 exits: *Mat x2) -8/Materials (discovered 4 exits: *Fac x3 / Gar) -8/Garrison -8/Materials -8/Garrison (discovered 1 exit: *Fac) History --------- Turn | Location | Event 2 | -11/Scrapyard | Met Revision 17 19 | -11/Scrapyard | Discovered new exit (range 15) 76 | -11/Scrapyard | Entered Materials 231 | -10/Materials | Discovered new exit (range 16) 274 | -10/Materials | Discovered new exit (range 13) 304 | -10/Materials | Build established: Mutant 765 | -10/Materials | Entered Mines 771 | -10/Mines | Discovered new exit (range 12) 801 | -10/Mines | Deemed a non-threat by the Exiles lab entrance 888 | -10/Mines | Discovered new exit (range 5) 919 | -10/Mines | Assisted by bots powering up and referring to "LRC-V3" 1126 | -10/Mines | Learned location of 1 exit from Materials 1208 | -10/Mines | Discovered new exit (range 5) 1231 | -10/Mines | Entered Exiles 1231 | -10/Exiles | Accompanied by 5 allies 1256 | -10/Exiles | Met 8R-AWN 1261 | -10/Exiles | Led the pair of lost Derelicts to a safe place 1272 | -10/Exiles | Met EX-HEX 1346 | -10/Exiles | Met EX-DEC 1366 | -10/Exiles | Learned location of Zion (-6) 1415 | -10/Exiles | Discovered new exit (range 14) 1431 | -10/Exiles | Entered Mines 1431 | -9/Mines | Accompanied by 3 allies 1895 | -9/Mines | Discovered new exit (range 8) 1915 | -9/Mines | Identified exit to Materials 1945 | -9/Mines | Entered Materials 1945 | -8/Materials | Accompanied by 2 allies 1945 | -8/Materials | Evolved 4 slots: Utility x4 1946 | -8/Materials | Identified exit to Factory 2678 | -8/Materials | Discovered exit to Factory (range 4) 3104 | -8/Materials | Lost 3 parts (2n1u) 3380 | -8/Materials | Build established: Scavenger-Mutant 3490 | -8/Materials | Lost 3 parts (1p1u1w) 3710 | -8/Materials | Lost 3 parts (1n2w) 3813 | -8/Materials | Discovered exit to Factory (range 16) 4375 | -8/Materials | Garrison activated, responded to threat 4465 | -8/Materials | Identified exit to Garrison 4468 | -8/Materials | Entered Garrison 4474 | -8/Garrison | Installed Relay Interface Framework 4757 | -8/Garrison | Garrison Relay disabled 4790 | -8/Garrison | Triggered checkpoint 5047 | -8/Garrison | Build established: Hauler-Mutant 5088 | -8/Garrison | Triggered checkpoint 5165 | -8/Garrison | Discovered new exit (range 10) 5222 | -8/Garrison | Triggered checkpoint 5336 | -8/Garrison | Garrison Relay disabled 5384 | -8/Garrison | Identified exit to Materials 5386 | -8/Garrison | Entered Materials 5509 | -8/Materials | Core integrity fell below 50% 5642 | -8/Materials | Build established: Bothacker-Mutant 6276 | -8/Materials | Garrison activated, responded to threat 6396 | -8/Materials | Identified exit to Garrison 6396 | -8/Materials | Entered Garrison 6464 | -8/Garrison | Lost 4 parts (2n2w) 6516 | -8/Garrison | Triggered checkpoint 6925 | -8/Garrison | Core integrity fell below 20% 6944 | -8/Garrison | Garrison Relay disabled 6998 | -8/Garrison | Triggered checkpoint 7028 | -8/Garrison | Triggered checkpoint 7228 | -8/Garrison | Triggered checkpoint 7310 | -8/Garrison | Triggered checkpoint 7394 | -8/Garrison | Discovered exit to Factory (range 14) 7406 | -8/Garrison | Destroyed by Y-45 Defender with Heavy Assault Rifle Last Messages --------------- 07367_ Field strength at 49. 07368_ Field strength at 32. 07369_ Field strength at 15. 07370_ Stasis field depleted. 07372_ System corrupted: FCS attempts to trigger EM Pulse Cannon. 07372_ System corrupted: EM Pulse Cannon misfires. 07394_ EXIT=FOUND: FACTORY 07395_ Triggered Alarm Trap. 07395_ An alarm sounds. 07396_ Y-45 Defender destroyed. 07396_ Y-45 Defender springs to life. 07400_ Marksman 3a destroyed. 07402_ Slug penetrates Y-45 Defender. 07402_ Y-45 Defender destroyed. 07402_ Y-45 Defender suffers critical hit. 07402_ Y-45 Defender destroyed. 07404_ System corrupted: Heat flow error (+191). 07404_ Slug penetrates Y-45 Defender. 07404_ Y-45 Defender suffers critical hit. 07404_ Y-45 Defender destroyed. Map ----- +----------------------------------------------------+ | | | | | ?????????????????????????????????????????????????? | | ?????????????????????????????????????????????????? | | ?????????????????????????????????????????????????? | | ?????????????????????????????????????????????????? | | ?????????????????????????????????????????????????? | | ?????????????????????????????????????????????????? | | ?????????????????????????????????????????????????? | | ?????????????????????????????????????????????????? | | ??????????????????????####???????????????????????? | | ?????????????????????? #??????????????????????? | | ??????????????????????< = ??????????????????????? | | ?????????????????????? *%#??????????????????????? | | ??????????????????????# !#??????????????????????? | | ??????????????????????# #??????????????????????? | | ??????????????????????# #??????????????????????? | | ??????????????????????# #??????????????????????? | | ??????????????????????# #??????????????????????? | | ??????????????????????# #??????????????????????? | | ??????????????????????# #??????????????????????? | | ????????????###?????### #??????????????????????? | | ????????????#!!!!####%/! #??????????????????????? | | ????????????# =![/[ #??????????????????????? | | ?????????# %!Y! #??????????????????????? | | ????????????#!!!!####[/=!@#??????????????????????? | | ????????????????????###%x*#??????????????????????? | | ??????????????????????#x%=#??????????????????????? | | ??????????????????????# ! #??????????????????????? | | ??????????????????????# #??????????????????????? | | ??????????????????????# #??????????????????????? | | ??????????????????????# #??????????????????????? | | ??????????????????????# #??????????????????????? | | ??????????????????????# #??????????????????????? | | ??????????????????????# #??????????????????????? | | ??????????????????????# #??????????????????????? | | ??????????????????????# #??????????????????????? | | ?????????????????###### #######????????????????? | | ?????????????????# ?????????? | | ?????????????????# #### #######????????????????? | | ?????????????????# #??# #??????????????????????? | | ?????????? ??????# #??# #??????????????????????? | | ?????????? ??????# #??# #??????????????????????? | | ?????????? ??????# #??# #??????????????????????? | | ##""""###+####### #### #??????????????????????? | | =%[ #??????????????????????? | | %* =%=%* #??????????????????????? | | == ^ #??????????????????????? | | ## [ ###############??????????????????????? | | ## ###??????????????????????????????????? | +----------------------------------------------------+ Best States ------------- Heat Dissipation 64 Energy Generation 14 Energy Capacity 275 Matter Stores 300 Matter Capacity 300 Sight Range 16 Robot Scan Range 16 Terrain Scan Density 10 Armor Coverage 1200 Utility Shielding 33 Evasion (%) 50 Recoil Reduction 2 Offensive Hacking 10 Relay Coupler Types 36 Relay Coupler Value 2 Item Schematics ----------------- Imp. Datajack | -8/Materials | Scanalyzed Robot Schematics ------------------ None Fabricated ------------ Nothing Alien Tech Used ----------------- None Achievements -------------- None Challenges ------------ None Game ------ Seed BehemothMachineMembrane Manual? 0 Play Time 01:36:08 Cumulative 67.3 hours Start 2020.09.26 @ 21:21:27 End 2020.09.26 @ 23:53:41 Sessions 3 Manual Loads 0 Difficulty Rogue Special Mode None Game No. 56 Rogue 56 Adventurer 0 Explorer 0 Win Type - Total 0 Types 0/0/0/0/0/0/0/0/0 Lore% 47 Gallery% 51 Achievement% 43 Wizard Run 0 Options --------- ASCII 0 Keyboard 1 Movement Numpad Keybinds 0 Fullscreen 2 Font 18/Smallcaps Map View 76x50 Tactical HUD 1 Map Filters NONE Filters NONE Steam 1 RUN: 849aef9e-e571-4029-afbd-ae3b5e7cc1c0